Cogmind - Beta 10.2 @@@ ROGUE MODE // 2020.11.10 @ 20:18:20 // Halloween2020/ForbiddenLore Player: WayneKnight Result: Destroyed by D-53 Grenadier with Mini Grenade Launcher Performance ------------- Evolutions (0) 0 Regions Visited (4) 800 Robots Destroyed (21) 105 Value Destroyed (444) 444 Prototype IDs (23) 460 Alien Tech Used (0) 0 Bonus (300) 300 TOTAL SCORE: 2109 Bonus ------- Aligned with FarCom 300 Cogmind --------- Core Integrity 0/250 Matter 233/300 Energy 125/125 System Corruption 0% Temperature Cool (63) Movement Treading (220) Ox3 Location -9/Mines Parts ------- > --- POWER (1) -------- Light Ion Engine > --- PROPULSION (2) --- Light Treads > --- UTILITY (2) ------ Large Storage Unit High-capacity Storage Unit > --- WEAPON (2) ------- Light Cannon Slug Cannon > --- INVENTORY (18) --- Light Ion Engine Improved Ion Engine Aluminum Leg Large Storage Unit Light Armor Plating Hacking Suite Beam Rifle Particle Gun XL Autogun Array Grenade Launcher Rocket Launcher Peak State ------------ > --- POWER ------------ Improved Ion Engine > --- PROPULSION ------- Light Treads Light Treads > --- UTILITY ---------- Large Storage Unit High-capacity Storage Unit > --- WEAPON ----------- Light Cannon Slug Cannon > --- INVENTORY -------- Light Ion Engine Light Ion Engine Improved Ion Engine Aluminum Leg Large Storage Unit Light Armor Plating Hacking Suite Beam Rifle Particle Gun XL Autogun Array Grenade Launcher Rocket Launcher [Rating: 16] Favorites ----------- Power Light Ion Engine Engine Light Ion Engine Propulsion Light Treads Treads Light Treads Leg Aluminum Leg Utility High-capacity Storage Unit Storage High-capacity Storage Unit Weapon Light Assault Rifle Energy Gun Particle Gun Ballistic Gun Light Assault Rifle Ballistic Cannon Slug Cannon Launcher Grenade Launcher Build | -11 -10 -10 -10 -9 ------- Run | Scr Mat Min Exi Min Slots Evolved . | . . . . . Power . | . . . . . Propulsion . | . . . . . Utility . | . . . . . Weapon . | . . . . . Parts Attached 19 | 1 7 7 . 4 Power 2 | . . 1 . 1 Engine 2 | . . 1 . 1 Core . | . . . . . Reactor . | . . . . . Propulsion 4 | . 2 1 . 1 Treads 4 | . 2 1 . 1 Leg . | . . . . . Wheel . | . . . . . Hover . | . . . . . Flight . | . . . . . Utility 3 | 1 2 . . . Device . | . . . . . Storage 3 | 1 2 . . . Processor . | . . . . . Hackware . | . . . . . Protection . | . . . . . Artifact . | . . . . . Weapon 10 | . 3 5 . 2 Energy Gun 2 | . 2 . . . Energy Cannon . | . . . . . Ballistic Gun 5 | . 1 4 . . Ballistic Cannon 2 | . . . . 2 Launcher 1 | . . 1 . . Special Weapon . | . . . . . Impact Weapon . | . . . . . Slashing Weapon . | . . . . . Piercing Weapon . | . . . . . Special Melee Weapon . | . . . . . Unidentified Prototypes . | . . . . . Parts Lost 7 | . . 2 . 5 Power 1 | . . . . 1 Propulsion 3 | . . 1 . 2 Utility . | . . . . . Weapon 3 | . . 1 . 2 Highest Loss Streak 5 | . . 1 . 5 Average Slot Usage (%) 99 | . 100 99 100 99 Engine 14 | . 14 14 14 14 Treads 27 | . 28 27 28 27 Storage 28 | . 28 28 28 28 Energy Gun 5 | . 13 1 . . Ballistic Gun 22 | . 14 26 28 24 Naked Turns . | . . . . . Heaviest Build 59 | 13 56 59 59 59 Greatest Support 40 | 20 40 40 40 40 Greatest Overweight (x) 1 | . 1 1 1 1 Average Overweight (x) . | . . 1 1 1 Largest Inventory Capacity 18 | 8 18 18 18 18 Average Capacity 17 | 6 15 18 18 18 Most Carried 18 | 6 18 18 18 18 Average Carried 15 | 6 13 16 17 17 Final Capacity 18 | 8 18 18 18 18 Final Carried 18 | 6 18 18 18 14 Class Distribution -------------------- 100% | Mutant Dominant Class ---------------- Mutant | -10/Materials Mutant | -10/Mines Mutant | -10/Exiles Mutant | -9/Mines Resources | -11 -10 -10 -10 -9 ----------- Run | Scr Mat Min Exi Min Matter Collected 488 | 200 88 200 . . Remotely . | . . . . . Salvage Created 524 | 75 164 255 . 30 Parts 43 | 3 19 20 . 1 Haulers Intercepted . | . . . . . Recyclers Shooed . | . . . . . Parts Field Recycled . | . . . . . Retrieved Matter . | . . . . . Parts Self-Destructed . | . . . . . Prevented . | . . . . . Kills | -11 -10 -10 -10 -9 ------- Run | Scr Mat Min Exi Min Combat Hostiles Destroyed 18 | . 5 12 . 1 Guns 14 | . 5 9 . . Cannons 1 | . . . . 1 AOE 3 | . . 3 . . Classes Destroyed 6 | 1 4 . . 1 Recycler 1 | 1 . . . . Operator 1 | . 1 . . . Watcher 1 | . 1 . . . Swarmer 11 | . 3 8 . . Grunt 6 | . 2 4 . . Demolisher 1 | . . . . 1 Best Kill Streak 3 | 1 3 3 . 1 Combat Bots Only 3 | . 3 3 . 1 Max Kills in Single Turn 3 | 1 1 3 . 1 Gunslinging . | . . . . . Exploded 3 | . . 3 . . Melee . | . . . . . Uniques/NPCs Destroyed . | . . . . . Combat | -11 -10 -10 -10 -9 -------- Run | Scr Mat Min Exi Min Damage Taken 1447 | . 192 332 . 923 Core 264 | . 35 28 . 201 Absorbed by Shields . | . . . . . Core Remaining (%) 100 | 100 . . . . Volleys Fired 66 | 3 25 31 . 7 Largest 2 | 2 2 2 . 2 Hottest 85 | 60 85 85 . 83 Shots Fired 129 | 6 48 61 . 14 Gun 120 | 6 48 60 . 6 Cannon 8 | . . . . 8 Launcher 1 | . . 1 . . Special . | . . . . . Kinetic 92 | 3 25 50 . 14 Thermal 36 | 3 23 10 . . Explosive 1 | . . 1 . . Electromagnetic . | . . . . . Robot Hit Streak 10 | 4 7 10 . 4 Robot Miss Streak 5 | 1 5 2 . 3 Penetration Max . | . . . . . Secondary Targets 1 | . 1 . . . Max Gunslinging Chain 1 | . 1 . . . Shots Hit Robots 80 | 4 28 41 . 7 Core Hits 38 | 2 12 20 . 4 Critical Hits 1 | . . . . 1 Critical Kills . | . . . . . Critical Parts Destroyed 1 | . . . . 1 Melee Attacks . | . . . . . Impact . | . . . . . Slashing . | . . . . . Piercing . | . . . . . Sneak Attacks . | . . . . . Combat Hostiles . | . . . . . Follow-up Attacks . | . . . . . Damage Inflicted 1116 | 37 304 643 . 132 Guns 922 | 37 304 533 . 48 Cannons 84 | . . . . 84 Explosions 92 | . . 92 . . Melee . | . . . . . Ramming 18 | . . 18 . . Kinetic 628 | 15 100 381 . 132 Thermal 378 | 22 204 152 . . Explosive 92 | . . 92 . . Electromagnetic . | . . . . . Impact . | . . . . . Slashing . | . . . . . Piercing . | . . . . . Highest Corruption . | . . . . . Average Corruption . | . . . . . Corruption Purged . | . . . . . Overload Shots . | . . . . . Overflow Damage . | . . . . . Projectiles . | . . . . . Explosions . | . . . . . Melee . | . . . . . Knockbacks 1 | . . . . 1 Impact . | . . . . . Kinetic 1 | . . . . 1 Secondary . | . . . . . Self-Inflicted Damage . | . . . . . Shots . | . . . . . Rammed 2 | . . 2 . . Targets Rammed 2 | . . 2 . . Kicked . | . . . . . Crushed . | . . . . . Highest Temperature 324 | 20 276 324 . 63 Average Temperature 93 | 15 81 151 . 25 Received Heat Transfer 168 | . 48 120 . . Effects 3 | . 2 1 . . Shutdowns 1 | . . 1 . . Energy Bleed 2 | . 2 . . . Siege Activations . | . . . . . Robots Corrupted . | . . . . . Combat Hostiles . | . . . . . Parts Fried . | . . . . . Impact Corruptions . | . . . . . Robots Melted . | . . . . . Combat Hostiles . | . . . . . Parts Melted 2 | . 1 1 . . Heat Transferred 903 | 50 483 370 . . Parts Sabotaged . | . . . . . Parts Stolen . | . . . . . Parts Stripped . | . . . . . Power Chain Reactions . | . . . . . Missiles Intercepted . | . . . . . Alert | -11 -10 -10 -10 -9 ------- Run | Scr Mat Min Exi Min Peak Influence 200 | 5 100 200 . 20 Initial 5 | . 3 5 . . Average 48 | 2 32 65 . . Maximum Alert Level 1 | . . 1 . . Low Security (%) 96 | 100 100 93 . 100 Level 1 3 | . . 6 . . Level 2 . | . . . . . Level 3 . | . . . . . Level 4 . | . . . . . Level 5 . | . . . . . High Security . | . . . . . Max Security . | . . . . . Squads Dispatched 2 | . 2 . . . Investigation . | . . . . . Extermination . | . . . . . Reinforcement 2 | . 2 . . . Assault . | . . . . . Garrison . | . . . . . Intercept . | . . . . . Construction Impeded . | . . . . . Haulers Reinforced . | . . . . . Stealth | -11 -10 -10 -10 -9 --------- Run | Scr Mat Min Exi Min Distress Signals 1 | . 1 . . . Communications Jammed . | . . . . . Distress Signals . | . . . . . Times Spotted 32 | . 15 15 . 2 Peak Tracking Total 3 | . 3 3 . 2 Tactical Retreats 8 | . 4 4 . . Traps | -11 -10 -10 -10 -9 ------- Run | Scr Mat Min Exi Min Traps Triggered . | . . . . . Indirectly . | . . . . . Trap Hack Attempts . | . . . . . Triggered . | . . . . . Disarmed . | . . . . . Reprogrammed . | . . . . . Reused . | . . . . . Traps Extracted . | . . . . . Installed . | . . . . . Triggered . | . . . . . Machines | -11 -10 -10 -10 -9 ---------- Run | Scr Mat Min Exi Min Machines Disabled . | . . . . . Max in Single Turn . | . . . . . Machines Sabotaged . | . . . . . Garrisons Compromised . | . . . . . Overloaded Fab Kills . | . . . . . Fab Network Shutdowns . | . . . . . Hacking | -11 -10 -10 -10 -9 --------- Run | Scr Mat Min Exi Min Machines Accessed 6 | . 4 . 2 . Terminals 4 | . 4 . . . Fabricators . | . . . . . Repair Stations . | . . . . . Recycling Units . | . . . . . Scanalyzers . | . . . . . Garrison Access . | . . . . . Total Hacks 19 | . 14 . 5 . Successful 13 | . 8 . 5 . Failed 5 | . 5 . . . Catastrophic . | . . . . . Database Lockouts 1 | . 1 . . . Manual 12 | . 11 . 1 . Terminals 14 | . 14 . . . Fabricators . | . . . . . Repair Stations . | . . . . . Recycling Units . | . . . . . Scanalyzers . | . . . . . Garrison Access . | . . . . . Terminal Hacks 9 | . 4 . 5 . Record 4 | . . . 4 . Robot Analysis 2 | . 2 . . . Locate Traps 1 | . 1 . . . Zone Layout 1 | . 1 . . . EX-Prototype ID Bank 1 | . . . 1 . Fabricator Hacks . | . . . . . Repair Station Hacks . | . . . . . Recycling Unit Hacks . | . . . . . Scanalyzer . | . . . . . Garrison Access Hacks . | . . . . . Unauthorized Hacks 4 | . 4 . . . Terminals 4 | . 4 . . . Track 1 | . 1 . . . Botnet 3 | . 3 . . . Fabricators . | . . . . . Repair Stations . | . . . . . Recycling Units . | . . . . . Scanalyzers . | . . . . . Garrison Access . | . . . . . Data Cores Recovered . | . . . . . Used . | . . . . . Hacking Detections 4 | . 4 . . . Full Trace Events . | . . . . . Feedback Events . | . . . . . Feedback Blocked . | . . . . . Robot Schematics Acquired . | . . . . . Robots Built . | . . . . . Matter . | . . . . . Time . | . . . . . Total Robot Build Rating . | . . . . . Part Schematics Acquired . | . . . . . Parts Built . | . . . . . Matter . | . . . . . Time . | . . . . . Total Part Build Rating . | . . . . . Parts Repaired . | . . . . . Time . | . . . . . Parts Recycled . | . . . . . Recycled Matter . | . . . . . Retrieved Matter . | . . . . . Retrieved Components . | . . . . . Parts Scanalyzed . | . . . . . Part Schematics Acquired . | . . . . . Parts Damaged . | . . . . . Bothacking | -11 -10 -10 -10 -9 ------------ Run | Scr Mat Min Exi Min Used RIF Installer . | . . . . . Robots Hacked . | . . . . . Non-combat . | . . . . . Combat . | . . . . . Robot Hacks Applied . | . . . . . Relay Couplers Released . | . . . . . Robots Rewired . | . . . . . Allies Hacked . | . . . . . Hacks Repelled . | . . . . . Allies | -11 -10 -10 -10 -9 -------- Run | Scr Mat Min Exi Min Total Allies 3 | . . 3 . . Largest Group 3 | . . 3 3 3 Highest-Rated Group 40 | . . 40 40 40 Highest-Rated Ally 16 | . . 16 16 16 Total Orders . | . . . . . Ally Attacks 5 | . . . . 5 Total Damage 50 | . . . . 50 Kills 2 | . . . . 2 Allies Corrupted . | . . . . . Allies Melted . | . . . . . Intel | -11 -10 -10 -10 -9 ------- Run | Scr Mat Min Exi Min Robot Analysis Total 2 | . 2 . . . Derelict Logs Recovered 2 | . . 2 . . Drone Launches . | . . . . . Drone Recoveries . | . . . . . Exploration | -11 -10 -10 -10 -9 ------------- Run | Scr Mat Min Exi Min Turns Passed 3860 | 13 1323 1731 617 176 Spaces Moved 1894 | 3 682 790 342 77 Core . | . . . . . Treads 1890 | . 681 790 342 77 Legs 4 | 3 1 . . . Wheels . | . . . . . Hover . | . . . . . Flight . | . . . . . Fastest Speed 120 | 120 120 180 180 180 Average Speed 178 | 120 176 180 180 180 Slowest Speed 180 | 120 180 180 180 180 Overloaded Moves . | . . . . . Propulsion Burnouts . | . . . . . Robots Hopped . | . . . . . Cave-ins Triggered . | . . . . . Exploration Rate (%) 58 | 2 97 99 71 24 Regions Visited 4 Branch Regions 3 Pre-discovered Areas 1 | . . . 1 . Known Exits Taken . | . . . . . Unknown Exits Taken 4 | 1 1 1 1 . Scrap Searched 2 | . . 2 . . Spaces Dug . | . . . . . Terrain Destroyed 10 | . . 9 . 1 Melee . | . . . . . Projectile 1 | . . . . 1 AOE 9 | . . 9 . . Terrain Rammed . | . . . . . Walls Destroyed . | . . . . . Machines Disabled . | . . . . . Actions | -11 -10 -10 -10 -9 --------- Run | Scr Mat Min Exi Min Total 2253 | 6 756 1043 346 102 Wait 244 | . 28 202 . 14 Move 1890 | 2 681 789 341 77 Hop . | . . . . . Pick Up 19 | . 12 6 1 . Fast Attach 1 | 1 . . . . Attach 6 | . . 2 . 4 Detach . | . . . . . Swap 12 | . 7 5 . . Drop 13 | . 3 6 4 . Fire 66 | 3 25 31 . 7 Melee . | . . . . . Ram . | . . . . . Kick . | . . . . . Crush 2 | . . 2 . . Escape Stasis . | . . . . . Rewire . | . . . . . Trap . | . . . . . Miscellaneous . | . . . . . Route ------- -11/Scrapyard -10/Materials (discovered 5 exits: [*Mat x3] / [*Min x2]) -10/Mines (discovered 3 exits: [*Mat x2] / *Exi) -10/Exiles -9/Mines History --------- Turn | Location | Event 10 | -11/Scrapyard | Discovered new exit (range 3) 14 | -11/Scrapyard | Entered Materials 186 | -10/Materials | Discovered new exit (range 16) 302 | -10/Materials | Build established: Mutant 502 | -10/Materials | Discovered new exit (range 15) 590 | -10/Materials | Discovered new exit (range 16) 657 | -10/Materials | Central database locked down 799 | -10/Materials | Discovered new exit (range 15) 875 | -10/Materials | Discovered new exit (range 5) 1337 | -10/Materials | Entered Mines 1521 | -10/Mines | Learned 2 Materials zone layouts 1847 | -10/Mines | Learned Materials stockpile data 1855 | -10/Mines | Discovered new exit (range 15) 1862 | -10/Mines | Received a Rocket Launcher from a helpful Derelict 1989 | -10/Mines | Found a hidden stash of uninstalled traps 2333 | -10/Mines | Discovered new exit (range 3) 2380 | -10/Mines | A weapon hastily lodged in a ceiling crevice suddenly fell to the ground 2529 | -10/Mines | Joined a pair of Derelicts in attacking an 0b10 outpost 2594 | -10/Mines | Deemed a non-threat by the Exiles lab entrance 2596 | -10/Mines | Discovered new exit (range 5) 2717 | -10/Mines | Assisted by bots powering up and referring to "LRC-V3" 3068 | -10/Mines | Entered Exiles 3068 | -10/Exiles | Accompanied by 3 allies 3112 | -10/Exiles | Met 8R-AWN 3140 | -10/Exiles | Met EX-HEX 3236 | -10/Exiles | Met EX-DEC 3290 | -10/Exiles | Learned location of Zion (-7) 3425 | -10/Exiles | Met EX-BIN 3450 | -10/Exiles | Aligned with FarCom system 3452 | -10/Exiles | Given EX-Vault access code 3495 | -10/Exiles | Opened EX-Vault 3512 | -10/Exiles | Found XL Autogun Array 3547 | -10/Exiles | Warned to stay clear of 0b10 Research branches 3664 | -10/Exiles | Discovered new exit (range 12) 3685 | -10/Exiles | Left Exiles lab with XL Autogun Array 3685 | -10/Exiles | Entered Mines 3685 | -9/Mines | Accompanied by 3 allies 3784 | -9/Mines | Assembled infested the area 3789 | -9/Mines | Assisted by a Guerilla fighting off Assembled 3848 | -9/Mines | Core integrity fell below 50% 3860 | -9/Mines | Core integrity fell below 20% 3861 | -9/Mines | Destroyed by D-53 Grenadier with Mini Grenade Launcher Last Messages --------------- 03845_ Lgt. Treads destroyed. 03847_ U-05 Engineer lays Concrete. 03847_ Lgt. Assault Rifle destroyed. 03848_ The unstable cave ceiling collapses. 03848_ U-05 Engineer lays Concrete. 03849_ The unstable cave ceiling collapses. 03849_ U-05 Engineer builds a Wall. 03851_ Lgt. Treads destroyed. 03852_ The unstable cave ceiling collapses. 03853_ U-05 Engineer lays Concrete. 03854_ The unstable cave ceiling collapses. 03854_ U-05 Engineer lays Concrete. 03855_ Imp. Ion Engine destroyed. 03856_ The unstable cave ceiling collapses. 03856_ U-05 Engineer builds a Wall. 03856_ D-53 Grenadier knocked back. 03857_ The unstable cave ceiling collapses. 03859_ D-53 Grenadier destroyed. 03860_ The unstable cave ceiling collapses. 03860_ U-05 Engineer builds a Wall. Map ----- +----------------------------------------------------+ | ?????????????????????????????????????????????????? | | ???????????????????????????????????????#?????????? | | ?????????????????????????????????????## ?????????? | | ????????????????????????????????????## ?????????? | | ??????????????????????????????#?????# ?????????? | | ?????????????????????????????? ?????# ?????????? | | ?????????????????????????????? ?????# #?????????? | | ?????????????????????????????? ?????# #?????????? | | ??????????????????????????#??? ##???? ##????????? | | ??????????????????????????? ? ##??? ##???????? | | ???????????????????????????? #???# #????#### | | ?????????????????????"???????# #??## #???## | | ????????????????????? ???????# #??# #???# | | ????????????????????? ??????## #### #???# | | ????????????????????? ?????## #???# " | | ??????????????????#### ###### ##?## " | | ????????????? ???# #### ## ### " | | ????????????? ??# # # #### ## | | ????????????? ## #u ### | | ?????????????? %# ######?## | | ???????????????? ! # #??????## | | ?????????????????# # d ##?????# | | ??????????????????# % #?????# | | ???????????????????# #??????## | | ???????????????????## #???????## ### | | ???????????????????# @ #????????#####?## | | ???????????????????# ##??????????????## | | ?????????????????# # # ##????????????#### | | ??????????????????? # ##????????????## | | ?????????????????# # ##?????????????# | | ?????????????????#? #######??????????????# | | ?????????????????? ??????????????????????## | | ????????????????? ????????????????????????## | | ????????????????# ??????????????????????????# | | ????????????????# ???????????????????????????## | | ????????????????#?????????????????????????????### | | ????????????????????????????????????????????????## | | ?????????????????????????????????????????????????? | | ?????????????????????????????????????????????????? | | | | | | | | | | | | | | | | | | | | | | | +----------------------------------------------------+ Best States ------------- Heat Dissipation 25 Energy Generation 12 Energy Capacity 265 Matter Stores 300 Matter Capacity 300 Sight Range 16 Terrain Scan Density 10 Evasion (%) 40 Recoil Reduction 2 Item Schematics ----------------- None Robot Schematics ------------------ None Fabricated ------------ Nothing Alien Tech Used ----------------- None Achievements -------------- None Challenges ------------ None Game ------ Seed MissileDecoderExtractor Manual? 0 Play Time 00:18:30 Cumulative 106.7 hours Start 2020.11.10 @ 19:57:20 End 2020.11.10 @ 20:18:20 Sessions 1 Manual Loads 0 Difficulty Rogue Special Mode Halloween2020/ForbiddenLore Game No. 90 Rogue 90 Adventurer 0 Explorer 0 Win Type - Total 2 Types 2/0/0/0/0/0/0/0/0 Lore% 42 Gallery% 54 Achievement% 41 Wizard Run 0 Options --------- ASCII 1 Keyboard 1 Movement Arrows Keybinds 0 Fullscreen 1 Font 24/Proggy Map View 76x50 Tactical HUD 1 Map Filters NONE Filters NONE Steam 1 RUN: 3c60c789-ca3f-4052-8fe3-7339163c8739